fUST/lending_fUST_20250707
["ID","MTS","AMOUNT","RATE_DAILY","PERIOD"]
[370041732,1751860149670,-460.0,0.00017184,2]
[370041733,1751860149692,-462.2,0.00017184,2]
[370041734,1751860149713,-460.0,0.00017184,2]
[370041735,1751860149734,-460.0,0.00017184,2]
[370041736,1751860149755,-52.02433448,0.00017184,2]
[370041737,1751860149781,-432.38921537,0.00017184,2]
[370041738,1751860149802,-460.0,0.00017184,2]
[370041739,1751860150003,-460.0,0.00017184,2]
[370041740,1751860150025,-460.0,0.00017184,2]
[370041741,1751860150047,-460.0,0.00017184,2]
[370041742,1751860150067,-359.10596881,0.00017185,2]
[370041743,1751860150089,-196.82,0.00017185,2]
[370041744,1751860150109,-460.0,0.00017185,2]
[370041745,1751860150130,-541.68605149,0.00017185,2]
[370041746,1751860150153,-460.0,0.00017185,2]
[370041747,1751860150175,-460.0,0.00017185,2]
[370041748,1751860150196,-460.0,0.00017185,2]
[370041749,1751860150216,-460.0,0.00017185,2]
[370041750,1751860150236,-460.0,0.00017185,2]
[370041751,1751860150257,-460.0,0.00017185,2]
[370041752,1751860150277,-541.34,0.00017185,2]
[370041753,1751860150299,-460.0,0.00017185,2]
[370041754,1751860150320,-500.0,0.00017185,2]
[370041755,1751860150341,-500.0,0.00017185,2]
[370041756,1751860150363,-460.0,0.00017185,2]
[370041757,1751860150384,-460.0,0.00017185,2]
[370041758,1751860150404,-460.0,0.00017185,2]
[370041759,1751860150424,-460.0,0.00017185,2]
[370041760,1751860150445,-460.0,0.00017185,2]
[370041761,1751860150467,-269.26154569,0.00017185,2]
[370041762,1751860150488,-418.85555696,0.00017185,2]
[370041763,1751860150509,-460.0,0.00017185,2]
[370041764,1751860150531,-460.0,0.00017186,2]
[370041765,1751860150556,-460.0,0.00017186,2]
[370041766,1751860150578,-460.0,0.00017186,2]
[370041767,1751860150599,-460.0,0.00017186,2]
[370041768,1751860150620,-460.0,0.00017186,2]
[370041769,1751860150640,-460.0,0.00017186,2]
[370041770,1751860150659,-263.98905555,0.00017186,2]
[370041771,1751860150681,-500.0,0.00017186,2]
[370041772,1751860150702,-460.0,0.00017186,2]
[370041773,1751860150725,-939.22,0.00017186,2]
[370041774,1751860150746,-460.0,0.00017186,2]
[370041775,1751860150767,-460.0,0.00017186,2]
[370041776,1751860150788,-188.97741364,0.00017187,2]
[370041777,1751860150808,-461.66691065,0.00017187,2]
[370041778,1751860150828,-462.74439728,0.00017187,2]
[370041779,1751860150848,-460.0,0.00017187,2]
[370041780,1751860150869,-460.0,0.00017187,2]
[370041781,1751860150889,-460.0,0.00017187,2]
[370041782,1751860150915,-500.0,0.00017187,2]
[370041783,1751860150937,-24900.0,0.00017188,2]
[370041784,1751860150959,-460.0,0.00017457,2]
[370041785,1751860150981,-460.0,0.00017458,2]
[370041786,1751860151008,-460.0,0.00017458,2]
[370041787,1751860151030,-460.0,0.00017458,2]
[370041788,1751860151053,-460.0,0.00017458,2]
[370041789,1751860151076,-462.2,0.00017458,2]
[370041790,1751860151097,-460.0,0.00017458,2]
[370041791,1751860151118,-262.43855893,0.00017458,2]
[370041792,1751860151140,-460.0,0.00017458,2]
[370041793,1751860151163,-460.0,0.00017459,2]
[370041794,1751860151184,-460.0,0.00017459,2]
[370041795,1751860151206,-460.0,0.00017459,2]
[370041796,1751860151228,-939.22,0.0001746,2]
[370041797,1751860151251,-460.0,0.0001746,2]
[370041798,1751860151271,-460.0,0.0001746,2]
[370041799,1751860151293,-460.0,0.00017731,2]
[370041800,1751860151315,-460.0,0.00017732,2]
[370041801,1751860151337,-460.0,0.00017732,2]
[370041802,1751860151359,-460.0,0.00017732,2]
[370041803,1751860151381,-460.0,0.00017732,2]
[370041804,1751860151408,-462.2,0.00017732,2]
[370041805,1751860151430,-460.0,0.00017732,2]
[370041806,1751860151452,-460.0,0.00017732,2]
[370041807,1751860151475,-197.98,0.00017733,2]
[370041808,1751860151496,-460.0,0.00017733,2]
[370041809,1751860151518,-527.06857295,0.00017733,2]
[370041810,1751860151541,-939.22,0.00017734,2]
[370041811,1751860151563,-460.0,0.00017734,2]
[370041812,1751860151585,-460.0,0.00017734,2]
[370041813,1751860151605,-2278.92019623,0.00018,14]
[370041814,1751860151626,-460.0,0.00018005,2]
[370041815,1751860151648,-460.0,0.00018006,2]
[370041816,1751860151669,-460.0,0.00018006,2]
[370041817,1751860151691,-460.0,0.00018006,2]
[370041818,1751860151714,-460.0,0.00018006,2]
[370041819,1751860151735,-462.2,0.00018006,2]
[370041820,1751860151757,-460.0,0.00018006,2]
[370041821,1751860151778,-460.0,0.00018007,2]
[370041822,1751860151800,-939.22,0.00018008,2]
[370041823,1751860151822,-460.0,0.00018008,2]
[370041824,1751860151844,-460.0,0.00018008,2]
[370041825,1751860151908,460.0,0.00018006,2]
[370041826,1751860152173,-160.0,0.00018179,2]
[370041827,1751860152195,-465.15543719,0.00018183,2]
[370041828,1751860152217,-460.0,0.00018183,2]
[370041829,1751860152240,-460.0,0.00018183,2]
[370041830,1751860152260,-321.69322488,0.00018183,2]
[370041831,1751860152281,-460.0,0.00018183,2]
[370041832,1751860152303,-460.0,0.00018183,2]
[370041833,1751860152323,-460.0,0.00018183,2]
[370041834,1751860152344,-460.0,0.00018183,2]
[370041835,1751860152364,-460.0,0.00018183,2]
[370041836,1751860152385,-460.0,0.00018183,2]
[370041837,1751860152408,-460.0,0.00018183,2]
[370041838,1751860152429,-460.0,0.00018183,2]
[370041839,1751860152449,-460.0,0.00018183,2]
[370041840,1751860152469,-460.0,0.00018183,2]
[370041841,1751860152489,-449.37725049,0.00018183,2]
[370041842,1751860152510,-460.0,0.00018183,2]
[370041843,1751860152529,-460.0,0.00018183,2]
[370041844,1751860152550,-460.0,0.00018183,2]
[370041845,1751860152570,-460.0,0.00018183,2]
[370041846,1751860152590,-460.0,0.00018183,2]
[370041847,1751860152611,-460.0,0.00018183,2]
[370041848,1751860152632,-449.50666772,0.00018183,2]
[370041849,1751860152654,-460.0,0.00018184,2]
[370041850,1751860152675,-218.29461389,0.00018185,2]
[370041851,1751860152696,-462.32012595,0.00018186,2]
[370041852,1751860152717,-460.0,0.00018186,2]
[370041853,1751860152738,-460.0,0.00018186,2]
[370041854,1751860152759,-460.0,0.00018186,2]
[370041855,1751860152780,-460.0,0.00018186,2]
[370041856,1751860152800,-1448.07,0.00018186,2]
[370041857,1751860152819,-462.92800577,0.00018187,2]
[370041858,1751860152839,-462.39624873,0.00018187,2]
[370041859,1751860152859,-461.88197679,0.00018187,2]
[370041860,1751860152879,-461.35471765,0.00018187,2]
[370041861,1751860152902,-462.72454661,0.00018187,2]
[370041862,1751860152923,-461.22109451,0.00018187,2]
[370041863,1751860152942,-460.0,0.00018187,2]
[370041864,1751860152963,-500.0,0.00018187,2]
[370041865,1751860152983,-462.73092811,0.00018187,2]
[370041866,1751860153003,-461.80473413,0.00018187,2]
[370041867,1751860153023,-429.64826447,0.00018187,2]
[370041868,1751860153043,-510.58680343,0.00018187,2]
[370041869,1751860153063,-421.35192895,0.00018187,2]
[370041870,1751860153085,-432.33623753,0.00018187,2]
[370041871,1751860155732,460.0,0.00017186,2]
[370041872,1751860155930,460.0,0.0001746,2]
[370041873,1751860156204,460.0,0.00017734,2]
[370041874,1751860156468,460.0,0.00018008,2]
[370041875,1751860159053,460.0,0.00017186,2]
[370041876,1751860159302,460.0,0.0001746,2]
[370041877,1751860159766,460.0,0.00017184,2]
[370041878,1751860160023,460.0,0.00017458,2]
[370041879,1751860160103,460.0,0.00017734,2]
[370041880,1751860160272,460.0,0.00017732,2]
[370041881,1751860160363,460.0,0.00018008,2]
[370041882,1751860160523,307.142648,0.00018006,2]
[370041883,1751860189505,460.0,0.00017186,2]
[370041884,1751860189770,460.0,0.0001746,2]
[370041885,1751860225902,460.0,0.00017186,2]
[370041886,1751860226291,460.0,0.0001746,2]
[370041887,1751860226640,460.0,0.00017734,2]
[370041888,1751860226900,460.0,0.00018008,2]
[370041910,1751860233078,-95.69844299,0.00018183,2]
[370041911,1751860233116,460.0,0.00017183,2]
[370041912,1751860233148,460.0,0.00017457,2]
[370041913,1751860233514,460.0,0.00017731,2]
[370041914,1751860233770,460.0,0.00018005,2]
[370041915,1751860235815,478.57,0.00017183,2]
[370041916,1751860236095,478.57,0.00017457,2]
[370041917,1751860236352,478.57,0.00017731,2]
[370041918,1751860236940,478.57,0.00018005,2]
[370041922,1751860238170,-364.30155701,0.00018183,2]
[370041923,1751860238179,-71.20919583,0.00018186,2]
[370041924,1751860238191,-357.00060202,0.00018186,2]
[370041927,1751860239085,-31.79020215,0.00018186,2]
[370041928,1751860239095,-1.66728364,0.00018187,2]
[370041929,1751860239104,-191.44169963,0.00018189,2]
[370041930,1751860239114,-82.11931643,0.00018272,3]
[370041931,1751860239131,-384.47068357,0.00018272,3]
[370041932,1751860239141,-460.0,0.00018279,2]
[370041933,1751860239150,-300.0,0.00018279,2]
[370041934,1751860239159,-460.0,0.00018279,2]
[370041935,1751860239170,-478.57,0.00018279,2]
[370041936,1751860239180,-460.0,0.0001828,2]
[370041937,1751860239189,-460.0,0.0001828,2]
[370041938,1751860239199,-462.2,0.0001828,2]
[370041939,1751860239209,-460.0,0.0001828,2]
[370041940,1751860239218,-460.0,0.0001828,2]
[370041941,1751860239227,-460.0,0.00018281,2]
[370041942,1751860239237,-939.22,0.00018282,2]
[370041943,1751860239246,-460.0,0.00018282,2]
[370041944,1751860239255,-460.0,0.00018282,2]
[370041945,1751860239264,-538.26,0.00018282,2]
[370041946,1751860239273,-460.0,0.00018282,2]
[370041947,1751860239283,-460.0,0.00018282,2]
[370041948,1751860239292,-460.0,0.00018457,2]
[370041949,1751860239301,-460.0,0.00018457,2]
[370041950,1751860239310,-207.86,0.00018457,2]
[370041951,1751860239319,-460.0,0.00018457,2]
[370041952,1751860239329,-460.0,0.0001846,2]
[370041953,1751860239338,-460.0,0.0001846,2]
[370041954,1751860239347,-1448.07,0.0001846,2]
[370041955,1751860239356,-460.0,0.0001846,2]
[370041956,1751860239365,-500.0,0.0001852,2]
[370041957,1751860239374,-500.0,0.0001852,2]
[370041958,1751860239383,-460.0,0.00018553,2]
[370041959,1751860239392,-460.0,0.00018553,2]
[370041960,1751860239402,-478.57,0.00018553,2]
[370041961,1751860239411,-460.0,0.00018554,2]
[370041962,1751860239420,-460.0,0.00018554,2]
[370041963,1751860239430,-462.2,0.00018554,2]
[370041964,1751860239439,-460.0,0.00018554,2]
[370041965,1751860239448,-460.0,0.00018554,2]
[370041966,1751860239458,-460.0,0.00018555,2]
[370041967,1751860239469,-939.22,0.00018556,2]
[370041968,1751860239480,-460.0,0.00018556,2]
[370041969,1751860239489,-460.0,0.00018556,2]
[370041970,1751860239498,-460.0,0.00018556,2]
[370041971,1751860239507,-507.65,0.00018556,2]
[370041972,1751860239519,-174.14270239,0.0001873,2]
[370041973,1751860239528,-514.75697613,0.00018731,2]
[370041974,1751860239538,-460.0,0.00018731,2]
[370041975,1751860239550,-460.0,0.00018731,2]
[370041976,1751860239559,-460.0,0.00018734,2]
[370041977,1751860239569,-460.0,0.00018734,2]
[370041978,1751860239579,-1448.07,0.00018734,2]
[370041979,1751860239588,-460.0,0.00018734,2]
[370041980,1751860239597,-460.0,0.00018827,2]
[370041981,1751860239606,-460.0,0.00018827,2]
[370041982,1751860239616,-478.57,0.00018827,2]
[370041983,1751860239625,-460.0,0.00018828,2]
[370041984,1751860239635,-460.0,0.00018828,2]
[370041985,1751860239645,-462.2,0.00018828,2]
[370041986,1751860239654,-460.0,0.00018828,2]
[370041987,1751860239663,-460.0,0.00018828,2]
[370041988,1751860239672,-460.0,0.00018829,2]
[370041989,1751860239682,-939.22,0.0001883,2]
[370041990,1751860239691,-460.0,0.0001883,2]
[370041991,1751860239701,-460.0,0.0001883,2]
[370041992,1751860239712,-2093.99826588,0.000189,2]
[370041993,1751860239722,-460.0,0.00019005,2]
[370041994,1751860239731,-460.0,0.00019005,2]
[370041995,1751860239741,-460.0,0.00019008,2]
[370041996,1751860239750,-460.0,0.00019008,2]
[370041997,1751860239759,-1448.07,0.00019008,2]
[370041998,1751860239769,-460.0,0.00019008,2]
[370041999,1751860239778,-54541.92475383,0.00019098,2]
[370042000,1751860239787,-460.0,0.00019101,2]
[370042001,1751860239797,-460.0,0.00019101,2]
[370042002,1751860239807,-478.57,0.00019101,2]
[370042003,1751860239816,-460.0,0.00019102,2]
[370042004,1751860239826,-460.0,0.00019102,2]
[370042005,1751860239835,-462.2,0.00019102,2]
[370042006,1751860239845,-251.08,0.00019102,2]
[370042007,1751860239855,-460.0,0.00019102,2]
[370042008,1751860239865,-460.0,0.00019103,2]
[370042009,1751860239874,-939.22,0.00019104,2]
[370042010,1751860239883,-460.0,0.00019104,2]
[370042011,1751860239893,-460.0,0.00019104,2]
[370042012,1751860239903,-2093.99826574,0.00019141,2]
[370042013,1751860239913,-265.61386,0.00019178,2]
[370042014,1751860239933,-377.32009654,0.00019279,2]
[370042015,1751860239942,-460.0,0.00019279,2]
[370042016,1751860239953,-460.0,0.00019282,2]
[370042017,1751860239963,-460.0,0.00019282,2]
[370042018,1751860239973,-1448.07,0.00019282,2]
[370042019,1751860239982,-460.0,0.00019282,2]
[370042020,1751860239992,-460.0,0.00019375,2]
[370042021,1751860240001,-460.0,0.00019375,2]
[370042022,1751860240011,-478.57,0.00019375,2]
[370042023,1751860240021,-460.0,0.00019376,2]
[370042024,1751860240031,-460.0,0.00019376,2]
[370042025,1751860240040,-462.2,0.00019376,2]
[370042026,1751860240050,-460.0,0.00019376,2]
[370042027,1751860240060,-460.0,0.00019377,2]
[370042028,1751860240069,-939.22,0.00019378,2]
[370042029,1751860240078,-460.0,0.00019378,2]
[370042030,1751860240088,-2093.99826574,0.00019383,2]
[370042031,1751860240097,-460.0,0.00019553,2]
[370042032,1751860240107,-460.0,0.00019556,2]
[370042033,1751860240116,-460.0,0.00019556,2]
[370042034,1751860240126,-1448.07,0.00019556,2]
[370042035,1751860240138,-460.0,0.00019556,2]
[370042036,1751860240148,-2093.99826574,0.00019624,2]
[370042037,1751860240158,-460.0,0.00019649,2]
[370042038,1751860240167,-534.86335127,0.00019649,2]
[370042039,1751860240176,-460.0,0.0001965,2]
[370042040,1751860240187,-508.54691578,0.0001965,2]
[370042041,1751860240196,-462.2,0.0001965,2]
[370042042,1751860240207,-288.53,0.0001965,2]
[370042043,1751860240216,-460.0,0.00019651,2]
[370042044,1751860240226,-939.22,0.00019652,2]
[370042045,1751860240235,-460.0,0.00019652,2]
[370042046,1751860240245,-500.0,0.00019811,2]
[370042047,1751860240254,-500.0,0.00019811,2]
[370042048,1751860240264,-501.15289154,0.00019811,2]
[370042049,1751860240273,-504.04703047,0.00019811,2]
[370042050,1751860240283,-500.0,0.00019811,2]
[370042051,1751860240292,-460.0,0.00019827,2]
[370042052,1751860240302,-460.0,0.0001983,2]
[370042053,1751860240311,-460.0,0.0001983,2]
[370042054,1751860240320,-1448.07,0.0001983,2]
[370042055,1751860240330,-460.0,0.0001983,2]
[370042056,1751860240339,-2093.99826574,0.00019866,2]
[370042057,1751860240349,-500.0,0.00019897,2]
[370042058,1751860240359,-460.0,0.00019923,2]
[370042059,1751860240368,-460.0,0.00019924,2]
[370042060,1751860240378,-462.2,0.00019924,2]
[370042061,1751860240387,-500.0,0.00019924,2]
[370042062,1751860240396,-210.41,0.00019925,2]
[370042063,1751860240406,-939.22,0.00019926,2]
[370042064,1751860240416,-460.0,0.00019926,2]
[370042065,1751860240425,-420.0,0.00019939,2]
[370042066,1751860240435,-611.22373411,0.00019952,2]
[370042067,1751860240444,-300.38956109,0.0002,2]
[370042068,1751860240454,-300.36645618,0.0002,2]
[370042069,1751860240463,-1223.16682621,0.00020002,2]
[370042070,1751860240477,-493.65,0.00020101,2]
[370042071,1751860240487,-460.0,0.00020104,2]
[370042072,1751860240497,-460.0,0.00020104,2]
[370042073,1751860240506,-1448.07,0.00020104,2]
[370042074,1751860240515,-460.0,0.00020104,2]
[370042075,1751860240524,-2093.99826574,0.00020107,2]
[370042076,1751860240534,-500.0,0.00020173,2]
[370042077,1751860240543,-239.968466,0.00020187,2]
[370042078,1751860240554,-460.0,0.00020196,2]
[370042079,1751860240564,-460.0,0.00020198,2]
[370042080,1751860240574,-462.2,0.00020198,2]
[370042081,1751860240584,-939.22,0.000202,2]
[370042082,1751860240593,-460.0,0.000202,2]
[370042083,1751860240603,-500.0,0.00020265,2]
[370042084,1751860240613,-2093.99826574,0.00020348,3]
[370042085,1751860240623,-500.0,0.00020357,2]
[370042086,1751860240633,-1000.0,0.00020359,2]
[370042087,1751860240643,-624.72787449,0.00020359,2]
[370042088,1751860240652,-460.0,0.00020378,2]
[370042089,1751860240662,-460.0,0.00020378,2]
[370042090,1751860240672,-1448.07,0.00020378,2]
[370042091,1751860240681,-460.0,0.00020378,2]
[370042092,1751860240691,-500.0,0.0002045,2]
[370042093,1751860240700,-460.0,0.0002047,2]
[370042094,1751860240710,-460.0,0.00020472,2]
[370042095,1751860240720,-462.2,0.00020472,2]
[370042096,1751860240730,-939.22,0.00020474,2]
[370042097,1751860240739,-460.0,0.00020474,2]
[370042098,1751860240749,-500.0,0.00020542,2]
[370042099,1751860240759,-2093.99826574,0.0002059,3]
[370042100,1751860240769,-942.86,0.000206,2]
[370042101,1751860240779,-500.0,0.00020634,2]
[370042102,1751860240788,-460.0,0.00020652,2]
[370042103,1751860240797,-460.0,0.00020652,2]
[370042104,1751860240807,-1448.07,0.00020652,2]
[370042105,1751860240816,-460.0,0.00020652,2]
[370042106,1751860240826,-150.0,0.0002069,2]
[370042107,1751860240835,-500.0,0.00020727,2]
[370042108,1751860240845,-460.0,0.00020744,2]
[370042109,1751860240855,-460.0,0.00020746,2]
[370042110,1751860240864,-462.2,0.00020746,2]
[370042111,1751860240873,-939.22,0.00020748,2]
[370042112,1751860240882,-460.0,0.00020748,2]
[370042113,1751860240892,-602.788,0.00020773,2]
[370042114,1751860240901,-500.0,0.00020819,2]
[370042115,1751860240910,-2093.99826574,0.00020831,4]
[370042116,1751860240920,-160.0,0.00020888,2]
[370042117,1751860240929,-837.79946008,0.00020888,2]
[370042118,1751860240938,-214.06929976,0.00020888,2]
[370042119,1751860240947,-12584.46609586,0.00020888,2]
[370042120,1751860240957,-160.0,0.00020888,2]
[370042121,1751860240967,-524.98484073,0.00020888,2]
[370042122,1751860240976,-160.0,0.00020888,2]
[370042123,1751860240986,-160.0,0.00020888,2]
[370042124,1751860240995,-848.27993403,0.00020888,2]
[370042125,1751860241005,-230.48668418,0.00020888,2]
[370042126,1751860241014,-160.0,0.00020888,2]
[370042127,1751860241023,-160.0,0.00020888,2]
[370042128,1751860241033,-215.21338352,0.00020888,2]
[370042129,1751860241042,-160.0,0.00020888,2]
[370042130,1751860241052,-160.0,0.00020892,2]
[370042131,1751860241061,-1500.0,0.00020907,2]
[370042132,1751860241071,-500.0,0.00020911,2]
[370042133,1751860241080,-460.0,0.00020926,2]
[370042134,1751860241090,-460.0,0.00020926,2]
[370042135,1751860241099,-1448.07,0.00020926,2]
[370042136,1751860241109,-303.33511228,0.00020926,2]
[370042137,1751860241119,-500.0,0.00021004,2]
[370042138,1751860241129,-460.0,0.00021018,2]
[370042139,1751860241139,-460.0,0.0002102,2]
[370042140,1751860241148,-462.2,0.0002102,2]
[370042141,1751860241158,-939.22,0.00021022,2]
[370042142,1751860241167,-460.0,0.00021022,2]
[370042143,1751860241177,-2093.99826574,0.00021072,4]
[370042144,1751860241186,-500.0,0.00021096,2]
[370042145,1751860241196,-33688.5766519,0.000211,2]
[370042146,1751860241206,-1223.16682618,0.00021178,2]
[370042147,1751860241215,-500.0,0.00021188,2]
[370042148,1751860241225,-460.0,0.000212,2]
[370042149,1751860241235,-460.0,0.000212,2]
[370042150,1751860241247,-1448.07,0.000212,2]
[370042151,1751860241256,-500.0,0.00021281,2]
[370042152,1751860241266,-269.78408869,0.00021292,2]
[370042153,1751860241276,-460.0,0.00021293,2]
[370042154,1751860241285,-462.2,0.00021293,2]
[370042155,1751860241294,-939.22,0.00021296,2]
[370042156,1751860241304,-460.0,0.00021296,2]
[370042157,1751860241313,-2093.99826574,0.00021314,5]
[370042158,1751860241324,-500.0,0.00021373,2]
[370042159,1751860241333,-9184.56862855,0.00021427,2]
[370042160,1751860241343,-2000.0,0.00021455,2]
[370042161,1751860241353,-500.0,0.00021465,2]
[370042162,1751860241363,-460.0,0.00021474,2]
[370042163,1751860241512,-460.0,0.00021474,2]
[370042164,1751860241522,-1448.07,0.00021474,2]
[370042165,1751860241532,-500.0,0.00021527,2]
[370042166,1751860241541,-2093.99826574,0.00021555,5]
[370042167,1751860241551,-500.0,0.00021558,2]
[370042168,1751860241562,-460.0,0.00021567,2]
[370042169,1751860241572,-462.2,0.00021567,2]
[370042170,1751860241581,-179.74835231,0.00021568,2]
[370042171,1751860241591,-939.22,0.0002157,2]
[370042172,1751860241601,-460.0,0.0002157,2]
[370042173,1751860241610,-500.0,0.0002165,2]
[370042174,1751860241622,-500.0,0.00021742,2]
[370042175,1751860241632,-460.0,0.00021748,2]
[370042176,1751860241642,-460.0,0.00021748,2]
[370042177,1751860241650,-1448.07,0.00021748,2]
[370042178,1751860241660,-587.0,0.00021749,2]
[370042179,1751860241671,-2093.99826574,0.00021797,6]
[370042180,1751860241682,-500.0,0.00021835,2]
[370042181,1751860241692,-460.0,0.00021841,2]
[370042182,1751860241702,-462.2,0.00021841,2]
[370042183,1751860241712,-939.22,0.00021844,2]
[370042184,1751860241724,-200.18,0.00021844,2]
[370042185,1751860241734,-942.86,0.000219,2]
[370042186,1751860241743,-500.0,0.00021917,2]
[370042187,1751860241752,-500.0,0.00021917,2]
[370042188,1751860241762,-500.0,0.00021917,2]
[370042189,1751860241772,-500.0,0.00021917,2]
[370042190,1751860241782,-500.0,0.00021917,2]
[370042191,1751860241792,-500.0,0.00021917,2]
[370042192,1751860241802,-500.0,0.00021917,2]
[370042193,1751860241811,-500.0,0.00021917,2]
[370042194,1751860241820,-531.5159971,0.00021917,2]
[370042195,1751860241830,-150.0,0.00021918,2]
[370042196,1751860241841,-200.33534176,0.00021918,2]
[370042197,1751860241851,-500.0,0.00021927,2]
[370042198,1751860241860,-373.63215116,0.0002199,2]
[370042199,1751860241871,-5542.71,0.00022,7]
[370042200,1751860241882,-200.0,0.00022,10]
[370042201,1751860241893,-264.180493,0.00022,10]
[370042202,1751860241903,-73361.69,0.00022,7]
[370042203,1751860241914,-848.27993403,0.00022,7]
[370042204,1751860241923,-214.06929976,0.00022,7]
[370042205,1751860241932,-2500.0,0.00022003,2]
[370042206,1751860241941,-460.0,0.00022022,2]
[370042207,1751860241951,-460.0,0.00022022,2]
[370042208,1751860241960,-1448.07,0.00022022,2]
[370042209,1751860241970,-2093.99826574,0.00022038,6]
[370042210,1751860241980,-460.0,0.00022115,2]
[370042211,1751860241989,-462.2,0.00022115,2]
[370042212,1751860241999,-939.22,0.00022118,2]
[370042213,1751860242008,-2093.99826574,0.00022279,6]
[370042214,1751860242017,-460.0,0.00022296,2]
[370042215,1751860242027,-460.0,0.00022296,2]
[370042216,1751860242036,-1448.07,0.00022296,2]
[370042217,1751860242046,-1223.16682618,0.00022354,2]
[370042218,1751860242055,-460.0,0.00022389,2]
[370042219,1751860242064,-462.2,0.00022389,2]
[370042220,1751860242080,-939.22,0.00022392,2]
[370042221,1751860242105,-2093.99826574,0.00022521,7]
[370042222,1751860242114,-2500.32412248,0.00022551,2]
[370042223,1751860242124,-460.0,0.0002257,2]
[370042224,1751860242134,-460.0,0.0002257,2]
[370042225,1751860242144,-1448.07,0.0002257,2]
[370042226,1751860242153,-265.61386,0.00022603,2]
[370042227,1751860242163,-150.0,0.00022639,2]
[370042228,1751860242173,-460.0,0.00022663,2]
[370042229,1751860242182,-462.2,0.00022663,2]
[370042230,1751860242192,-939.22,0.00022666,2]
[370042231,1751860242201,-2093.99826574,0.00022762,7]
[370042232,1751860242211,-460.0,0.00022844,2]
[370042233,1751860242220,-460.0,0.00022844,2]
[370042234,1751860242230,-1448.07,0.00022844,2]
[370042235,1751860242239,-319.05,0.00022937,2]
[370042236,1751860242248,-462.2,0.00022937,2]
[370042237,1751860242257,-939.22,0.0002294,2]
[370042238,1751860242267,-500.0,0.00022973,2]
[370042239,1751860242276,-500.0,0.00022973,2]
[370042240,1751860242286,-500.0,0.00022973,2]
[370042241,1751860242295,-502.94698062,0.00022973,2]
[370042242,1751860242304,-500.0,0.00022973,2]
[370042243,1751860242313,-500.0,0.00022973,2]
[370042244,1751860242323,-258.72925533,0.00022973,2]
[370042245,1751860242332,-500.0,0.00022973,2]
[370042246,1751860242341,-500.0,0.00022973,2]
[370042247,1751860242351,-600.0,0.00022973,2]
[370042248,1751860242361,-501.0614704,0.00022973,2]
[370042249,1751860242371,-500.0,0.00022973,2]
[370042250,1751860242381,-500.0,0.00022973,2]
[370042251,1751860242391,-500.0,0.00022973,2]
[370042252,1751860242402,-500.0,0.00022973,2]
[370042253,1751860242411,-501.41591202,0.00022973,2]
[370042254,1751860242420,-500.0,0.00022973,2]
[370042255,1751860242430,-500.0,0.00022973,2]
[370042256,1751860242439,-500.0,0.00022973,2]
[370042257,1751860242448,-500.0,0.00022973,2]